Workbook

Sheet Лист1
B1: Министерство образования и науки Республики Татарстан
B2: ПРИМЕРНОЕ ДВУХНЕДЕЛЬНОЕ МЕНЮ ДЛЯ ОБУЧАЮЩИХСЯ В ОБЩЕОБРАЗОВАТЕЛЬНЫХ ОРГАНИЗАЦИЯХ С 1-4 КЛАССЫ
B3: ВЕСЕННИЙ СЕЗОН
A4: № РЕЦЕПТУР | B4: Наименование блюд | G4: Выход | H4: Белки, г | I4: Жиры, г | K4: Углеводы, г | M4: Калорийность, ккал | O4: Витамин B1, мг | P4: Витамин С, мг | R4: Витамин А, мг | T4: Витамин Е, мг | V4: Ca, мг | W4: P, мг | X4: Mg, мг | Y4: Fe, мг
B5: 2-ая неделя
B6: 1 день
A7: № 338 Сбор.рец. На прод-ию для обуч. Во всех образ.учреж-Дели 2015 | B7: ПЛОДЫ И ЯГОДЫ СВЕЖИЕ (АПЕЛЬСИНЫ) | G7: 100 | H7: 0.400 | I7: 0.400 | K7: 7.350 | M7: 47 | O7: 0.030 | P7: 8.000 | R7: - | T7: 0.200 | V7: 46.000 | W7: 11.000 | X7: 0.100 | Y7: 0.000
A8: №45 Сбор.рец. На прод-ию для обуч. Во всех образ.учреж-Дели 2015 | B8: салАТ ИЗ КВАШЕНОЙ КАПУСТЫ | G8: 100 | H8: 0.780 | I8: 1.940 | K8: 3.870 | M8: 128 | O8: 0.013 | P8: 6.250 | R8: - | T8: 0.060 | V8: 16.980 | W8: 46.980 | X8: 6.050 | Y8: 0.270 | AI8: 2 ВАРИАНТ (НОЯБРЬ, ДЕКАБРЬ)
A9: № 280 Сбор.рец. На прод-ию для обуч. Во всех образ.учреж-Дели -2015 | B9: ФРИКАДЕЛЬКИ В СОУСЕ | G9: 55/50 | H9: 8.330 | I9: 7.743 | K9: 3.194 | M9: 175 | O9: 0.030 | P9: 0.650 | R9: 0.1 | T9: 1.256 | V9: 100.530 | W9: 110.071 | X9: 0.077 | Y9: 1.000
A10: № 171 Сбор.рец. На прод-ию для обуч. Во всех образ.учреж-Дели 2015 | B10: КАША РАССЫПЧАТАЯ (ГРЕЧНЕВАЯ) | G10: 150 | H10: 6.662 | I10: 9.024 | K10: 34.000 | M10: 170 | O10: 0.292 | P10: - | T10: 0.518 | V10: 37.352 | W10: 170.553 | X10: 40.550 | Y10: 1.101
A11: № 376 Сбор.рец. На прод-ию для обуч. Во всех образ.учреж-Дели 2015 | B11: ЧАЙ С САХАРОМ | G11: 200/15 | H11: 0.53 | I11: - | K11: 9.470 | M11: 40 | O11: - | P11: 0.27 | R11: - | T11: - | V11: 13.600 | W11: 22.13 | X11: 11.73 | Y11: 0.100
B12: ХЛЕБ ПШЕНИНИЧНЫЙ | G12: 30 | H12: 2.280 | I12: 0.240 | K12: 14.760 | M12: 71 | O12: 0.033 | P12: - | R12: - | T12: 0.330 | V12: 6.000 | W12: 19.500 | X12: 4.200 | Y12: 0.330
B13: ХЛЕБ РЖАНОЙ (РЖАНО-ПШЕНИЧНЫЙ) | G13: 20 | H13: 1.000 | I13: 0.200 | K13: 9.000 | M13: 44 | O13: 0.014 | P13: - | R13: - | T13: 0.108 | V13: 2.760 | W13: 12.720 | X13: 3.000 | Y13: 0.372
B14: Итого: | H14: =SUM(H7:H13) -> 19.982 | I14: =SUM(I7:I13) -> 19.547 | K14: =SUM(K7:K13) -> 81.644 | M14: =SUM(M7:M13) -> 674 | O14: =SUM(O7:O13) -> 0.41 | P14: =SUM(P7:P13) -> 15.170 | R14: =SUM(R9:R13) -> 0.1 | T14: =SUM(T7:T13) -> 2.472 | V14: =SUM(V7:V13) -> 223.222 | W14: =SUM(W7:W13) -> 392.954 | X14: =SUM(X7:X13) -> 65.7 | Y14: =SUM(Y7:Y13) -> 3.17
B15: 2 день
A16: № 52 Сбор.рец. На прод-ию для обуч. Во всех образ.учреж-Дели 2015 | B16: СВЕКЛА ВАРЕНАЯ ПОРЦИОННАЯ | G16: 60 | H16: 0.855 | I16: 3.653 | K16: 11.580 | M16: 26 | O16: 0.011 | P16: 7.700 | T16: 0.641 | V16: 121.090 | W16: 84.582 | X16: 12.540 | Y16: 0.198
A17: № 291 Сбор.рец. На прод-ию для обуч. Во всех образ.учреж-Дели -2015 | B17: ПЛОВ ИЗ ПТИЦЫ | G17: 50/150 | H17: 14.510 | I17: 14.710 | K17: 28.340 | M17: 364 | O17: 0.210 | P17: 4.900 | R17: 0.100 | T17: 1.200 | V17: 83.070 | W17: 273.000 | X17: 40.450 | Y17: 1.900
A18: № 377 Сбор.рец. На прод-ию для обуч. Во всех образ.учреж-Дели 2015 | B18: ЧАЙ С ЛИМОНОМ | G18: 200/15/7 | H18: 0.084 | I18: 0.012 | K18: 15.185 | M18: 62 | O18: 0.003 | P18: 2.800 | T18: 0.014 | V18: 3.250 | W18: 1.540 | X18: 0.840 | Y18: 0.087
B19: ХЛЕБ ПШЕНИНИЧНЫЙ | G19: 30 | H19: 2.280 | I19: 0.240 | K19: 14.760 | M19: 71 | O19: 0.033 | P19: - | R19: - | T19: 0.330 | V19: 6.000 | W19: 19.500 | X19: 4.200 | Y19: 0.330
B20: ХЛЕБ РЖАНОЙ (РЖАНО-ПШЕНИЧНЫЙ) | G20: 20 | H20: 1.000 | I20: 0.200 | K20: 9.000 | M20: 44 | O20: 0.014 | P20: - | R20: - | T20: 0.108 | V20: 2.760 | W20: 12.720 | X20: 3.000 | Y20: 0.372
B21: Итого: | H21: =SUM(H16:H20) -> 18.729 | I21: =SUM(I16:I20) -> 18.815 | K21: =SUM(K16:K20) -> 78.865 | M21: =SUM(M16:M20) -> 567 | O21: =SUM(O16:O20) -> 0.27 | P21: =SUM(P16:P20) -> 15.4 | R21: =SUM(R17:R20) -> 0.1 | T21: =SUM(T16:T20) -> 2.293 | V21: =SUM(V16:V20) -> 216.17 | W21: =SUM(W16:W20) -> 391.34 | X21: =SUM(X16:X20) -> 61.03 | Y21: =SUM(Y16:Y20) -> 2.887
B22: 3 день
A23: № 47 Сбор.рец. На прод-ию для обуч. Во всех образ.учреж-Дели 2015 | B23: САЛАТ ИЗ тушеноЙ КАПУСТЫ | G23: 60 | H23: 2.600 | I23: 5.058 | K23: 4.944 | M23: 56 | O23: 0.013 | P23: 5.180 | R23: - | T23: 1.381 | V23: 25.278 | W23: 18.606 | X23: 8.616 | Y23: 0.010
A24: № 234 Сбор.рец. На прод-ию для обуч. Во всех образ.учреж-Дели -2015 | B24: БИТОЧКИ РЫБНЫЕ | G24: 80 | H24: 6.450 | I24: 4.240 | K24: 7.49 | M24: 116 | O24: 0.050 | P24: 0.480 | R24: 0.100 | T24: 0.646 | V24: 44.020 | W24: 137.060 | X24: 12.000 | Y24: 0.000
A25: № 312 Сбор.рец. На прод-ию для обуч. Во всех образ.учреж-Дели -2015 | B25: ПЮРЕ КАРТОФЕЛЬНОЕ | G25: 150 | H25: 3.090 | I25: 8.282 | K25: 22 | M25: 172 | O25: 0.164 | P25: 7.943 | R25: 0.080 | T25: 0.231 | V25: 47.805 | W25: 98.835 | X25: 8.000 | Y25: 0.000
A26: № 379 Сбор.рец. На прод-ию для обуч. Во всех образ.учреж-Дели 2015 | B26: КОФЕЙНЫЙ НАПИТОК С МОЛОКОМ | G26: 200 | H26: 3.600 | I26: 2.670 | K26: 29.200 | M26: 155 | O26: 0.030 | P26: 1.470 | V26: 158.670 | W26: 132.000 | X26: 29.330 | Y26: 2.400
B27: ХЛЕБ ПШЕНИНИЧНЫЙ | G27: 30 | H27: 2.280 | I27: 0.240 | K27: 14.760 | M27: 71 | O27: 0.033 | P27: - | R27: - | T27: 0.330 | V27: 6.000 | W27: 19.500 | X27: 4.200 | Y27: 0.330
B28: ХЛЕБ РЖАНОЙ (РЖАНО-ПШЕНИЧНЫЙ) | G28: 20 | H28: 1.000 | I28: 0.200 | K28: 9.000 | M28: 44 | O28: 0.014 | P28: - | R28: - | T28: 0.108 | V28: 2.760 | W28: 12.720 | X28: 3.000 | Y28: 0.372
B29: Итого: | H29: =SUM(H23:H28) -> 19.020 | I29: =SUM(I23:I28) -> 20.690 | K29: =SUM(K23:K28) -> 87.461 | M29: =SUM(M23:M28) -> 614 | O29: =SUM(O23:O28) -> 0.304 | P29: =SUM(P23:P28) -> 15.073 | R29: =SUM(R24:R28) -> 0.18 | T29: =SUM(T23:T28) -> 2.696 | V29: =SUM(V23:V28) -> 284.533 | W29: =SUM(W23:W28) -> 418.721 | X29: =SUM(X23:X28) -> 65.146 | Y29: =SUM(Y23:Y28) -> 3.112
B30: 4 день
A31: № 62 Сбор.рец. На прод-ию для обуч. Во всех образ.учреж-Дели 2015 | B31: салат из квАШЕНОЙ КАПУСТЫ | G31: 60 | H31: 0.516 | I31: 2.132 | K31: 4.450 | M31: 26 | O31: 0.029 | P31: 13.430 | T31: 0.234 | V31: 23.302 | W31: 10.850 | X31: 2.468 | Y31: 0.158
A32: № 243 Сбор.рец. На прод-ию для обуч. Во всех образ.учреж-Дели -2015 | B32: СОСИСКИ ОТВАРНЫЕ | G32: 100 | H32: 7.400 | I32: 10.900 | K32: 0.800 | M32: 108 | O32: 0.030 | P32: - | R32: - | T32: 1.000 | V32: 35.000 | W32: 139.001 | X32: 16.000
A33: № 203 Сбор.рец. На прод-ию для обуч. Во всех образ.учреж-Дели 2015 | B33: МАКАРОННЫЕ ИЗДЕЛИЯ ОТВАРНЫЕ С МАСЛОМ | G33: 150/5 | H33: 5.100 | I33: 4.468 | K33: 28.500 | M33: 187 | O33: 0.087 | P33: - | R33: 0.100 | T33: 0.816 | V33: 16.457 | W33: 57.009 | X33: 8.479 | Y33: 0.869
A34: № 382 Сбор.рец. На прод-ию для обуч. Во всех образ.учреж-Дели 2015 | B34: КАКАО С МОЛОКОМ | G34: 200 | H34: 3.780 | I34: 0.670 | K34: 26.000 | M34: 125 | O34: 0.020 | P34: 1.330 | T34: 0.012 | V34: 133.330 | W34: 111.110 | X34: 25.560 | Y34: 2.000
B35: ХЛЕБ ПШЕНИНИЧНЫЙ | G35: 30 | H35: 2.280 | I35: 0.240 | K35: 14.760 | M35: 71 | O35: 0.033 | P35: - | R35: - | T35: 0.330 | V35: 6.000 | W35: 19.500 | X35: 4.200 | Y35: 0.330
B36: ХЛЕБ РЖАНОЙ (РЖАНО-ПШЕНИЧНЫЙ) | G36: 20 | H36: 1.000 | I36: 0.200 | K36: 9.000 | M36: 44 | O36: 0.014 | P36: - | R36: - | T36: 0.108 | V36: 2.760 | W36: 12.720 | X36: 3.000 | Y36: 0.372
B37: Итого: | H37: =SUM(H31:H36) -> 20.076 | I37: =SUM(I31:I36) -> 18.610 | K37: =SUM(K31:K36) -> 83.510 | M37: =SUM(M31:M36) -> 562 | O37: =SUM(O31:O36) -> 0.213 | P37: =SUM(P31:P36) -> 14.76 | R37: =SUM(R33:R36) -> 0.1 | T37: =SUM(T31:T36) -> 2.5 | V37: =SUM(V31:V36) -> 216.849 | W37: =SUM(W31:W36) -> 350.19 | X37: =SUM(X31:X36) -> 59.707 | Y37: =SUM(Y31:Y36) -> 3.7
B38: 5 день
A39: № 52 Сбор.рец. На прод-ию для обуч. Во всех образ.учреж-Дели 2015 | B39: винЕГРЕТ ОВОЩНОЙ | G39: 60 | H39: 0.855 | I39: 3.653 | K39: 11.580 | M39: 30 | O39: 0.011 | P39: 7.700 | T39: 0.641 | V39: 121.090 | W39: 84.582 | X39: 12.540 | Y39: 0.198
A40: № 290 Сбор.рец. На прод-ию для обуч. Во всех образ.учреж-Дели -2015 | B40: ПТИЦА ТУШЕННАЯ В СОУСЕ | G40: 50/50 | H40: 11.650 | I40: 10.756 | K40: 11.632 | M40: 164 | O40: 0.168 | P40: 6.326 | T40: 0.956 | V40: 85.185 | W40: 163.198 | X40: 15.716 | Y40: 1.800
A41: № 304 Сбор.рец. На прод-ию для обуч. Во всех образ.учреж-Дели 2015 | B41: РИС ОТВАРНОЙ | G41: 150 | H41: 3.834 | I41: 5.434 | K41: 29.600 | M41: 210 | O41: 0.044 | P41: - | R41: 0.180 | T41: 0.284 | V41: 11.460 | W41: 84.150 | X41: 13.330 | Y41: 0.010
A42: № 376 Сбор.рец. На прод-ию для обуч. Во всех образ.учреж-Дели 2015 | B42: ЧАЙ С САХАРОМ | G42: 200/15 | H42: 0.53 | I42: - | K42: 9.470 | M42: 40 | O42: - | P42: 0.27 | R42: - | T42: - | V42: 13.600 | W42: 22.13 | X42: 11.73 | Y42: 0.100
B43: ХЛЕБ ПШЕНИНИЧНЫЙ | G43: 30 | H43: 2.280 | I43: 0.240 | K43: 14.760 | M43: 71 | O43: 0.033 | P43: - | R43: - | T43: 0.330 | V43: 6.000 | W43: 19.500 | X43: 4.200 | Y43: 0.330
B44: ХЛЕБ РЖАНОЙ (РЖАНО-ПШЕНИЧНЫЙ) | G44: 20 | H44: 1.000 | I44: 0.200 | K44: 9.000 | M44: 44 | O44: 0.014 | P44: - | R44: - | T44: 0.108 | V44: 2.760 | W44: 12.720 | X44: 3.000 | Y44: 0.372
B45: Итого: | H45: =SUM(H39:H44) -> 20.149 | I45: =SUM(I39:I44) -> 20.283 | K45: =SUM(K39:K44) -> 86.042 | M45: =SUM(M39:M44) -> 559 | O45: =SUM(O39:O44) -> 0.27 | P45: =SUM(P39:P44) -> 14.296 | R45: =SUM(R40:R44) -> 0.18 | T45: =SUM(T39:T44) -> 2.319 | V45: =SUM(V39:V44) -> 240.095 | W45: =SUM(W39:W44) -> 386.28 | X45: =SUM(X39:X44) -> 60.516 | Y45: =SUM(Y39:Y44) -> 2.810
B46: 6 день
A47: № 338 Сбор.рец. На прод-ию для обуч. Во всех образ.учреж-Дели 2015 | B47: ПЛОДЫ И ЯГОДЫ СВЕЖИЕ (ЯБЛОКИ) | G47: 100 | H47: 0.400 | I47: 0.400 | K47: 7.350 | M47: 47 | O47: 0.030 | P47: 8.000 | R47: - | T47: 0.100 | V47: 16.000 | W47: 11.000 | X47: 9.000 | Y47: 0.030
A48: № 56 Сбор.рец. На прод-ию для обуч. Во всех образ.учреж-Дели 2015 | B48: салат из тушеноЙ КАПУСТЫ | G48: 60 | H48: 3.500 | I48: 6.110 | K48: 9.900 | M48: 33 | O48: 0.010 | P48: 11.310 | R48: - | T48: 0.400 | V48: 126.880 | W48: 120.410 | X48: 41.330 | Y48: 1.900
A49: № 392 Сбор.рец. На прод-ию для обуч. Во всех образ.учреж-Дели 2015 | B49: ПЕЛЬМЕНИ МЯСНЫЕ ОТВАРНЫЕ | G49: 180/5 | H49: 10.340 | I49: 12.175 | K49: 20.340 | M49: 237 | O49: 0.159 | P49: 0.491 | R49: 0.180 | T49: 1.283 | V49: 79.453 | W49: 239.018 | X49: 10.579 | Y49: 0.010
A50: № 377 Сбор.рец. На прод-ию для обуч. Во всех образ.учреж-Дели 2015 | B50: ЧАЙ С ЛИМОНОМ | G50: 200/15/7 | H50: 0.084 | I50: 0.012 | K50: 15.185 | M50: 62 | O50: 0.003 | P50: 2.800 | T50: 0.014 | V50: 3.250 | W50: 1.540 | X50: 0.840 | Y50: 0.087
B51: ХЛЕБ ПШЕНИНИЧНЫЙ | G51: 30 | H51: 2.280 | I51: 0.240 | K51: 14.760 | M51: 71 | O51: 0.033 | P51: - | R51: - | T51: 0.330 | V51: 6.000 | W51: 19.500 | X51: 4.200 | Y51: 0.330
B52: ХЛЕБ РЖАНОЙ (РЖАНО-ПШЕНИЧНЫЙ) | G52: 20 | H52: 1.000 | I52: 0.200 | K52: 9.000 | M52: 44 | O52: 0.014 | P52: - | R52: - | T52: 0.108 | V52: 2.760 | W52: 12.720 | X52: 3.000 | Y52: 0.372
B53: Итого: | H53: =SUM(H48:H52) -> 17.20 | I53: =SUM(I48:I52) -> 18.737 | K53: =SUM(K48:K52) -> 69.185 | M53: =SUM(M48:M52) -> 447 | O53: =SUM(O48:O52) -> 0.219 | P53: =SUM(P48:P52) -> 14.601 | R53: =SUM(R49:R52) -> 0.180 | T53: =SUM(T48:T52) -> 2.135 | V53: =SUM(V48:V52) -> 218.343 | W53: =SUM(W48:W52) -> 393.188 | X53: =SUM(X48:X52) -> 59.949 | Y53: =SUM(Y48:Y52) -> 3

Sheet Лист2

Sheet Лист3
